[Event "8th Svetozar Gligoric Cup 2022"]
[Site "Paracin"]
[Date "2022.06.03"]
[Round "5.1"]
[White "Atalik, Suat"]
[Black "Bogosavljevic, Boban"]
[Result "0-1"]
[ECO "D30"]
[WhiteElo "2459"]
[BlackElo "2527"]
[Annotator "TA"]
[PlyCount "68"]
[EventDate "2022.05.31"]
[EventType "team-tourn"]
[EventCountry "SRB"]
[SourceTitle "playchess.com"]
[Source "ChessBase"]
[SourceQuality "1"]
[TimeControl "40/5400+30:900+30"]

{[%evp 9,68,20,34,28,29,32,26,32,27,26,37,45,16,42,61,66,132,78,108,112,105,109,126,125,119,110,111,92,116,124,113,0,11,-138,-144,-208,-251,-241,-179,-400,-366,-352,-322,-472,-411,-652,-644,-841,-745,-990,-975,-1154,-531,-1429,-1379,-1360,-939,-934,-925,-849,-791]} 1. d4 {[%emt 0:00:02]} d5 {[%emt 0:01:06]} 2. c4 {[%emt 0:00:25]} e6 {[%emt 0:00:05]} 3. Nf3 {[%emt 0:00:43]} a6 {[%emt 0:00:24]} 4. Bg5 {[%emt 0:01:37]} Be7 {[%emt 0:00:56]} 5. Bxe7 {[%emt 0:00:25]} Qxe7 {[%emt 0:01:12]} 6. Nbd2 {[%emt 0:01:28] D30: Queen's Gambit Declined: Systems without Nc3.} Nf6 {[%emt 0:00:17]} 7. Rc1 {[%emt 0:01:51]} O-O {[%emt 0:02:41]} 8. g3 {[%emt 0:02:11] White has an edge.} c5 {[%emt 0:18:05]} 9. dxc5 {[%emt 0:06:03] [#]} d4 $146 {[%emt 0:01:15]} ({Predecessor:} 9... Qxc5 10. cxd5 Qxd5 11. Nc4 Qh5 12. Nce5 Nc6 13. Nxc6 bxc6 14. Qa4 Rb8 15. b3 a5 16. Bg2 Ba6 17. Rc2 Qg6 18. Rb2 Bb5 19. Qa3 Nd5 20. O-O Qf6 {½-½ (20) Yilmaz,M (2626)-Mareco,S (2652) Havana 2022}) 10. Nxd4 {[%emt 0:04:44]} Rd8 {[%emt 0:00:08]} 11. N4b3 {[%emt 0:00:14]} e5 {[%emt 0:21:38]} 12. Bg2 {[%emt 0:01:28]} e4 {[%emt 0:00:16]} (12... a5 $14) 13. Rc3 {[%emt 0:00:30]} (13. Qc2 $142 $1) 13... Nc6 {[%emt 0:01:15]} 14. h3 {[%emt 0:12:41]} a5 {[%emt 0:04:03]} 15. a4 $1 {[%emt 0:03:55]} h5 {[%emt 0:03:32]} 16. O-O {[%emt 0:09:44]} Bf5 {[%emt 0:02:24]} 17. Re3 {[%emt 0:00:54]} Qe6 {[%emt 0:02:18]} 18. Qc2 {[%emt 0:05:31][%cal Rd2e4]} Nd4 {[%emt 0:10:23]} 19. Nxd4 {[%emt 0:01:55]} Rxd4 {[%emt 0:00:05] [#]} 20. Qc3 {[%emt 0:00:45]} ({White should try} 20. Rc1 $1 $16) 20... Rad8 $11 {[%emt 0:00:39]} 21. Nb3 {[%emt 0:00:30] [#]} (21. Nf3 $11 Rxc4 22. Ng5 (22. Qxa5 Qc8 $15) 22... Rxc3 23. Nxe6 Rxe3 24. Nxd8) 21... Rd1 $1 $17 {[%emt 0:00:11] Black is more active.} 22. g4 {[%emt 0:16:18]} (22. Nxa5 $2 Bxh3 23. Re1 R8d2 24. Qxd2 Rxd2 $19) (22. Qc2 $17 {keeps fighting.} Rxf1+ 23. Bxf1 Bxh3 24. Bxh3 (24. Nxa5 $2 Bxf1 25. Qb1 Qa6 $19) 24... Qxh3 25. Nd2) 22... hxg4 $19 {[%emt 0:02:51]} 23. h4 {[%emt 0:00:13]} Nh5 {[%emt 0:02:43]} 24. Qc2 $2 {[%emt 0:06:15]} (24. c6 bxc6 25. Nc5) 24... Rxf1+ {[%emt 0:00:51]} 25. Bxf1 {[%emt 0:00:06]} Qf6 {[%emt 0:14:03]} 26. Qc3 {[%emt 0:02:14]} (26. Nxa5 Qxh4 27. Qb3 (27. Nxb7 $2 g3 $19) 27... g3 28. Rxg3 (28. fxg3 $2 Qg5 $19) 28... Nxg3 29. Qxg3 (29. fxg3 $2 Qg5 $19) 29... Qh6 $17) (26. c6 $142 Qxc6 27. Bg2) 26... Qxh4 {[%emt 0:00:12] Threatens to win with ...Rd1.} 27. Nd4 {[%emt 0:03:48]} (27. Qe1 $142 g3 28. Rxg3 Nxg3 29. fxg3) 27... Bg6 {[%emt 0:00:29] Black is clearly winning.} 28. Bg2 {[%emt 0:06:21]} Qf6 {[%emt 0:01:16]} 29. Nc2 {[%emt 0:02:51]} Rd1+ {[%emt 0:00:12]} 30. Bf1 {[%emt 0:00:05]} Qg5 {[%emt 0:02:33]} (30... Qh4 $142 {[%cal Od1f1] ( -> ...Rxf1+!)} 31. Rg3 e3 32. Qxe3 Bxc2) 31. b4 {[%emt 0:02:11]} g3 {[%emt 0:01:04]} 32. Rxg3 {[%emt 0:01:54]} Nxg3 {[%emt 0:00:10]} 33. Qxg3 {[%emt 0:00:14]} Qxg3+ {[%emt 0:00:16]} 34. fxg3 {[%emt 0:00:04]} Rd2 {[%emt 0:00:58] Weighted Error Value: White=0.82/Black=0.37} 0-1

[Event "8th Svetozar Gligoric Cup 2022"]
[Site "Paracin"]
[Date "2022.06.03"]
[Round "5.2"]
[White "Stankovic, Milos"]
[Black "Markovic, Miroslav"]
[Result "1/2-1/2"]
[ECO "B31"]
[WhiteElo "2430"]
[BlackElo "2271"]
[Annotator "TA"]
[PlyCount "38"]
[EventDate "2022.05.31"]
[EventType "team-tourn"]
[EventCountry "SRB"]
[SourceTitle "playchess.com"]
[Source "ChessBase"]
[SourceQuality "1"]
[TimeControl "40/5400+30:900+30"]

{[%evp 23,38,8,18,18,31,-18,-23,-14,-13,-3,9,26,37,0,5,0,19]} 1. e4 {[%emt 0:01:12]} c5 {[%emt 0:00:11]} 2. Nf3 {[%emt 0:00:31]} Nc6 {[%emt 0:00:16]} 3. Bb5 {[%emt 0:06:30]} Nf6 {[%emt 0:00:10][%cal Bg8f6,Bf6e8,Be8c7,Bc7e6][%mdl 32]} 4. Nc3 {[%emt 0:01:23]} g6 {[%emt 0:00:14]} 5. O-O {[%emt 0:01:49]} Bg7 {[%emt 0:00:08]} 6. Re1 {[%emt 0:01:43]} O-O {[%emt 0:00:05]} 7. e5 {[%emt 0:08:46]} Ne8 {[%emt 0:00:14]} 8. Bxc6 {[%emt 0:00:57]} dxc6 {[%emt 0:00:03]} 9. d3 {[%emt 0:00:58]} Nc7 {[%emt 0:00:09]} 10. Ne4 {[%emt 0:01:02]} b6 {[%emt 0:00:49]} 11. h3 {[%emt 0:00:33]} Ne6 {[%emt 0:01:36]} 12. a4 {[%emt 0:06:06]} a5 {[%emt 0:03:00]} 13. Neg5 {[%emt 0:05:49] B31: Sicilian: 2...Nc6 3 Bb5 g6.} Nc7 {[%emt 0:00:33] [#]} 14. Be3 $146 {[%emt 0:05:38]} (14. Bf4 $14) ({Predecessor:} 14. Bf4 h6 15. Ne4 Kh7 16. Bg3 Qd7 17. Rc1 Ba6 18. b3 Rad8 19. Qd2 Ne6 20. Qe3 Nd4 21. Nxd4 cxd4 {½-½ (86) Telepnev,I (2521)-Priepke,W (2472) GER email 2016}) 14... f6 $11 {[%emt 0:00:44]} 15. exf6 {[%emt 0:02:48] Black has an edge.} exf6 {[%emt 0:01:03]} 16. Ne4 {[%emt 0:00:18]} f5 {[%emt 0:10:30]} 17. Bg5 {[%emt 0:04:08]} Qd7 {[%emt 0:00:03]} 18. Nc3 {[%emt 0:03:37]} (18. Ned2 $5 {[%cal Re1e7]} Nd5 19. Nc4 $11) 18... Ne6 {[%emt 0:00:09]} 19. Qd2 {[%emt 0:04:29]} Nxg5 {[%emt 0:01:27] An even fight not without its subleties.  Weighted Error Value: White=0.14 (very precise) /Black=0.04 (flawless)} (19... Qd6 $5 {[%cal Rf5f4]}) 1/2-1/2

[Event "8th Svetozar Gligoric Cup 2022"]
[Site "Paracin"]
[Date "2022.06.03"]
[Round "5.3"]
[White "Saric, Sinisa"]
[Black "Zajic, Milan"]
[Result "1/2-1/2"]
[ECO "E32"]
[WhiteElo "2411"]
[BlackElo "2426"]
[Annotator "TA"]
[PlyCount "65"]
[EventDate "2022.05.31"]
[EventType "team-tourn"]
[EventCountry "SRB"]
[SourceTitle "playchess.com"]
[Source "ChessBase"]
[SourceQuality "1"]
[TimeControl "40/5400+30:900+30"]

{[%evp 18,65,0,0,-12,-12,0,0,0,-15,-13,-16,8,7,11,3,8,-8,8,8,8,8,3,9,14,8,14,7,14,0,38,31,72,72,72,72,72,72,72,64,64,64,64,0,71,60,55,62,77,59]} 1. d4 {[%emt 0:00:17]} Nf6 {[%emt 0:03:00]} 2. c4 {[%emt 0:00:46]} e6 {[%emt 0:00:07]} 3. Nc3 {[%emt 0:00:11]} Bb4 {[%emt 0:00:06]} 4. Qc2 {[%emt 0:00:12]} O-O {[%emt 0:00:10]} 5. e4 {[%emt 0:00:21]} d5 {[%emt 0:00:05]} 6. e5 {[%emt 0:00:28]} Ne4 {[%emt 0:00:07]} 7. Bd3 {[%emt 0:00:12]} c5 {[%emt 0:00:07]} 8. a3 {[%emt 0:00:10]} Bxc3+ {[%emt 0:00:30]} 9. bxc3 {[%emt 0:00:09]} cxd4 {[%emt 0:01:21]} 10. cxd4 {[%emt 0:00:13]} Nc6 {[%emt 0:07:21] E32: Nimzo-Indian: Classical (4 Qc2): 4...0-0.} 11. Ne2 {[%emt 0:02:33]} Qa5+ {[%emt 0:01:22]} 12. Kf1 {[%emt 0:00:17]} f6 {[%emt 0:00:31] The position is equal.} 13. Bxe4 {[%emt 0:00:50]} dxe4 {[%emt 0:00:05]} 14. exf6 {[%emt 0:00:20]} ({Of course not} 14. Qxe4 fxe5 15. Be3 Bd7 $17) 14... Rxf6 {[%emt 0:00:05]} 15. Be3 {[%emt 0:00:20]} Bd7 {[%emt 0:18:06]} 16. Ng3 {[%emt 0:21:11] [#]} Ne7 $146 {[%emt 0:16:40]} ({Predecessor:} 16... Rff8 17. Kg1 Rac8 18. Kf1 Ra8 19. Nxe4 e5 20. d5 Nd4 21. Qd3 Bf5 22. f3 Rac8 23. Kf2 {½-½ (23) Klima,L (2349)-Andreev,E (2458) Karvina 2011}) 17. Kg1 {[%emt 0:13:55]} Bc6 {[%emt 0:07:21]} 18. h4 {[%emt 0:01:44]} Nf5 {[%emt 0:04:27]} (18... Rc8 {is interesting.} 19. Nxe4 Bxe4 20. Qxe4 Rxc4 21. Qxb7 Nf5) 19. Nxf5 {[%emt 0:03:40]} Rxf5 {[%emt 0:15:31]} 20. Rh3 {[%emt 0:16:31][%cal Bh1h3,Bh3g3,Bg3g5][%mdl 32]} Rc8 {[%emt 0:02:20]} 21. Qb3 {[%emt 0:03:46]} Qd8 {[%emt 0:04:09]} 22. Rd1 {[%emt 0:02:48]} Qd7 {[%emt 0:01:39] [#] White must now prevent ...Ba4.} 23. Rc1 {[%emt 0:09:00]} (23. Qb4 {looks sharper.} Rcf8 24. Rg3 R8f7 25. Rg4) 23... Qf7 {[%emt 0:02:09]} 24. Rg3 {[%emt 0:06:58]} h5 {[%emt 0:09:54]} 25. Bh6 {[%emt 0:02:25]} g6 {[%emt 0:00:27]} 26. Be3 {[%emt 0:00:15] White is more active.} Kh7 {[%emt 0:00:20]} 27. Rg5 {[%emt 0:02:38]} Rd8 {[%emt 0:01:25]} 28. Qd1 {[%emt 0:04:37]} Rd7 {[%emt 0:01:06]} 29. Rb1 {[%emt 0:00:41]} Rxg5 {[%emt 0:01:25]} 30. Bxg5 {[%emt 0:01:22]} (30. hxg5 $14 Qf5 31. Qb3) 30... Qf5 {[%emt 0:00:06]} (30... Qg7 $11) 31. Be3 $16 {[%emt 0:00:57]} Qf6 {[%emt 0:00:25]} 32. g3 {[%emt 0:00:59]} Qf5 {[%emt 0:00:51]} 33. Kh2 {[%emt 0:06:14] Weighted Error Value: White=0.06 (flawless) /Black=0.12 (very precise)} 1/2-1/2

[Event "8th Svetozar Gligoric Cup 2022"]
[Site "Paracin"]
[Date "2022.06.03"]
[Round "5.4"]
[White "Toth, Aleksandar"]
[Black "Vratonjic, Slobo"]
[Result "1/2-1/2"]
[ECO "B47"]
[WhiteElo "2335"]
[BlackElo "2254"]
[Annotator "TA"]
[PlyCount "79"]
[EventDate "2022.05.31"]
[EventType "team-tourn"]
[EventCountry "SRB"]
[SourceTitle "playchess.com"]
[Source "ChessBase"]
[SourceQuality "1"]
[TimeControl "40/5400+30:900+30"]

{[%evp 15,79,13,0,0,-8,-19,22,-14,-9,-10,-15,-13,-5,-2,15,8,16,12,14,22,56,72,107,107,326,327,328,320,322,0,0,0,0,0,0,0,6,0,8,11,41,42,42,40,41,40,40,42,38,38,40,0,0,0,0,0,0,0,0,-4,0,0,0,-1,0,0]} 1. e4 {[%emt 0:00:04]} c5 {[%emt 0:00:07]} 2. Nf3 {[%emt 0:00:48]} e6 {[%emt 0:00:41]} 3. d4 {[%emt 0:01:25]} cxd4 {[%emt 0:00:18]} 4. Nxd4 {[%emt 0:00:05]} Nc6 {[%emt 0:00:17]} 5. Nc3 {[%emt 0:01:02]} Qc7 {[%emt 0:00:36]} 6. Be2 {[%emt 0:01:30]} a6 {[%emt 0:01:39]} 7. O-O {[%emt 0:02:05]} b5 {[%emt 0:00:10]} 8. a3 {[%emt 0:03:42]} Bb7 {[%emt 0:01:26]} 9. Kh1 {[%emt 0:03:59] B47: Sicilian: Taimanov: 5 Nc3 Qc7 6 f4, 6 g3 and 6 Be2.} Nf6 {[%emt 0:04:29]} 10. f4 {[%emt 0:21:03]} d6 {[%emt 0:00:10]} 11. Be3 {[%emt 0:04:05][%cal Bc1e3,Be3f4,Bf4e5][%mdl 32]} (11. f5 $5 {[%cal Rf5e6]} Nxd4 12. Qxd4 $11) 11... Nxd4 {[%emt 0:10:07]} 12. Qxd4 {[%emt 0:01:06]} Be7 {[%emt 0:02:15]} 13. Bf3 {[%emt 0:10:35]} e5 {[%emt 0:00:17]} 14. Qd2 {[%emt 0:00:58]} exf4 {[%emt 0:09:35]} 15. Bxf4 {[%emt 0:00:07]} O-O {[%emt 0:00:09]} 16. Rad1 {[%emt 0:02:39][%cal Rf4d6] [#]} Rfd8 $146 {[%emt 0:03:15]} ({Predecessor:} 16... Rad8 17. Qd3 Bc6 18. Ne2 Qb7 19. Ng3 Rfe8 20. Rfe1 Nd7 21. b4 Ne5 22. Bxe5 dxe5 {½-½ (31) Ruszin,A (2091)-Bardossi,J (2136) Hungary 2010}) 17. Qf2 {[%emt 0:01:24]} Rab8 {[%emt 0:09:30][%cal Ba8b8,Bb8b7,Bb7e7][%mdl 32]} 18. Qg3 {[%emt 0:08:56] And now e5 would win.} Ne8 {[%emt 0:00:50]} 19. e5 $1 {[%emt 0:09:07] Prevents Bf6. Strongly threatening Nd5. White is more active.} dxe5 $2 {[%emt 0:09:12]} (19... Bxf3 $16 {keeps fighting.} 20. Qxf3 dxe5 21. Bxe5 Bd6) 20. Bxe5 $18 {[%emt 0:00:10]} Bd6 {[%emt 0:00:01] [#]} 21. Rxd6 {[%emt 0:13:02][%mdl 512]} Rxd6 {[%emt 0:00:11] [#]} 22. Bxb7 {[%emt 0:00:22]} (22. Rd1 $1 $18 {[%cal Rd1d6]} Bxf3 23. Rxd6) 22... Rxb7 $11 {[%emt 0:00:25]} 23. Bxd6 {[%emt 0:03:46]} Qxd6 {[%emt 0:01:05]} 24. Qxd6 {[%emt 0:00:42]} Nxd6 $18 {[%emt 0:00:13][%mdl 4096] Endgame KRN-KRN} 25. Rd1 {[%emt 0:00:03]} Re7 {[%emt 0:04:48][%cal Of7f6]} 26. h3 {[%emt 0:01:10]} Ne8 {[%emt 0:01:03]} 27. Rd8 {[%emt 0:00:22]} f5 {[%emt 0:03:37]} 28. Ra8 {[%emt 0:00:37]} Re6 {[%emt 0:00:16]} 29. Nd5 {[%emt 0:00:20]} Kf7 {[%emt 0:00:24]} 30. Nb4 {[%emt 0:00:16]} Nd6 {[%emt 0:08:53]} 31. Rxa6 {[%emt 0:00:28]} Re1+ {[%emt 0:00:23]} 32. Kh2 {[%emt 0:00:03]} Nc4 {[%emt 0:01:19]} 33. b3 {[%emt 0:02:12]} Ne3 {[%emt 0:00:10] The position is equal.} 34. Kg3 {[%emt 0:04:57]} Rf1 {[%emt 0:00:18] Hoping for ...f4+.} 35. Nd3 {[%emt 0:01:09] Against f4+} g5 {[%emt 0:00:36]} 36. Ra7+ {[%emt 0:01:07]} Kf6 {[%emt 0:02:19]} 37. Ra6+ {[%emt 0:00:05]} Kg7 {[%emt 0:00:25]} 38. Ra7+ {[%emt 0:00:12]} Kf6 {[%emt 0:00:05]} 39. Ra6+ {[%emt 0:00:03]} Kg7 {[%emt 0:00:04]} 40. Ra7+ {[%emt 0:00:00] Weighted Error Value: White=0.17 (very precise) /Black=0.13 (very precise)} 1/2-1/2

[Event "8th Svetozar Gligoric Cup 2022"]
[Site "Paracin"]
[Date "2022.06.03"]
[Round "5.5"]
[White "Markus, Robert"]
[Black "Jovanovic, Dusan D"]
[Result "1-0"]
[ECO "E16"]
[WhiteElo "2613"]
[BlackElo "2391"]
[Annotator "TA"]
[PlyCount "81"]
[EventDate "2022.05.31"]
[EventType "team-tourn"]
[EventCountry "SRB"]
[SourceTitle "playchess.com"]
[Source "ChessBase"]
[SourceQuality "1"]
[TimeControl "40/5400+30:900+30"]

{[%evp 15,81,24,21,25,34,36,43,32,40,33,43,40,53,52,75,73,70,70,70,65,68,58,75,36,70,71,66,69,77,78,96,88,89,85,91,93,119,105,123,136,158,145,169,175,298,296,339,360,350,340,439,447,360,430,419,378,363,342,336,339,468,481,728,712,714,717,675,647]} 1. d4 {[%emt 0:00:04]} Nf6 {[%emt 0:00:08]} 2. c4 {[%emt 0:00:06]} e6 {[%emt 0:00:06]} 3. Nf3 {[%emt 0:00:06]} Bb4+ {[%emt 0:00:08]} 4. Bd2 {[%emt 0:00:06]} a5 {[%emt 0:00:25]} 5. g3 {[%emt 0:00:06]} b6 {[%emt 0:00:09]} 6. Bg2 {[%emt 0:00:06]} Bb7 {[%emt 0:00:05]} 7. O-O {[%emt 0:00:08]} O-O {[%emt 0:00:18]} 8. Bf4 {[%emt 0:01:25]} Be7 {[%emt 0:02:46]} 9. Qc2 {[%emt 0:00:14] E16: Queen's Indian: 4 g3 Bb7 5 Bg2 Bb4+.} Be4 {[%emt 0:05:04]} 10. Qc1 {[%emt 0:00:35]} Nh5 {[%emt 0:02:46]} 11. Be3 {[%emt 0:05:38] [#] White is slightly better.} Na6 $146 {[%emt 0:11:55]} ({Predecessor:} 11... d6 12. d5 e5 13. Nc3 Bg6 14. Nxe5 dxe5 15. d6 Bxd6 16. Bxa8 c6 17. Rd1 Qc7 {1-0 (40) Kazakovskiy,V (2456)-Yakubbaeva,N (2008) Tashkent 2019}) 12. Nc3 {[%emt 0:03:35]} Bb7 {[%emt 0:02:39]} 13. d5 {[%emt 0:05:08]} Nc5 {[%emt 0:06:22]} 14. Qc2 {[%emt 0:04:24]} Nf6 {[%emt 0:20:22][%cal Re6d5]} 15. Rad1 {[%emt 0:05:34]} Re8 {[%emt 0:03:09]} 16. Nd4 {[%emt 0:01:48]} (16. a3 {seems wilder.} Ng4 17. Bd4 Bd6 18. h3) 16... Bf8 {[%emt 0:01:45]} 17. Bg5 {[%emt 0:20:14]} h6 {[%emt 0:06:26]} 18. Bc1 {[%emt 0:00:06]} e5 {[%emt 0:07:48]} 19. Ndb5 {[%emt 0:01:31]} d6 {[%emt 0:00:26]} 20. b3 {[%emt 0:06:15]} Bc8 {[%emt 0:02:39]} 21. a3 {[%emt 0:00:19]} Na6 {[%emt 0:00:20]} 22. e4 {[%emt 0:06:46]} g6 {[%emt 0:00:54]} 23. h3 {[%emt 0:00:34]} Bg7 {[%emt 0:01:30]} 24. Be3 {[%emt 0:01:27]} Kh7 {[%emt 0:02:05]} 25. Rb1 {[%emt 0:01:26]} Ng8 {[%emt 0:01:22]} 26. b4 {[%emt 0:06:48]} axb4 {[%emt 0:01:01]} 27. axb4 {[%emt 0:00:06]} h5 {[%emt 0:00:15]} 28. f4 {[%emt 0:05:12] White is much more active.} Bh6 {[%emt 0:10:09]} 29. Qf2 {[%emt 0:04:41]} f5 {[%emt 0:01:24]} (29... f6 {keeps fighting.} 30. Ra1 Qd7) 30. fxe5 $18 {[%emt 0:01:52]} Bxe3 {[%emt 0:00:35]} 31. Qxe3 {[%emt 0:00:05] [#] Black must now prevent e6.} Rxe5 {[%emt 0:00:05]} 32. Nd4 {[%emt 0:03:27]} Bd7 {[%emt 0:01:37]} 33. Nf3 {[%emt 0:02:36]} Re8 {[%emt 0:02:38]} 34. Ng5+ {[%emt 0:02:12]} Kg7 {[%emt 0:00:07]} 35. Ne6+ {[%emt 0:00:36]} Bxe6 {[%emt 0:00:08]} 36. dxe6 {[%emt 0:00:05]} Rxe6 {[%emt 0:02:01]} 37. Qd4+ {[%emt 0:00:24]} Re5 {[%emt 0:01:44]} 38. exf5 {[%emt 0:00:07][%mdl 64] [#] Discovered Attack. White is clearly winning.} Ra7 {[%emt 0:00:56]} (38... Rb8 $142 39. fxg6 Nh6) 39. Nb5 {[%emt 0:02:42]} c5 {[%emt 0:00:15]} 40. bxc5 {[%emt 0:00:00]} ({Not} 40. Qxd6 Qxd6 41. Nxd6 Nxb4 $14) 40... bxc5 {[%emt 0:00:00]} 41. Qa1 {[%emt 0:00:28] Weighted Error Value: White=0.05 (flawless) /Black=0.23 (precise)} ({Less strong is} 41. Qxd6 Qxd6 42. Nxd6 Nb4 43. fxg6 Nf6 $16) 1-0

[Event "8th Svetozar Gligoric Cup 2022"]
[Site "Paracin"]
[Date "2022.06.03"]
[Round "5.6"]
[White "Dudukovic, Nikola"]
[Black "Kovacevic, Aleksandar"]
[Result "0-1"]
[ECO "A62"]
[WhiteElo "2346"]
[BlackElo "2503"]
[Annotator "TA"]
[PlyCount "70"]
[EventDate "2022.05.31"]
[EventType "team-tourn"]
[EventCountry "SRB"]
[SourceTitle "playchess.com"]
[Source "ChessBase"]
[SourceQuality "1"]
[TimeControl "40/5400+30:900+30"]

{[%evp 20,70,0,0,33,0,0,8,11,0,9,-8,-8,-14,0,-107,-91,-83,0,0,0,0,0,0,0,-23,0,0,0,0,0,0,0,-38,-15,-160,-109,-125,-120,-204,-167,-393,-388,-641,-620,-608,0,-595,-572,-29991,-29992,-29998,-29999]} 1. d4 {[%emt 0:00:10]} Nf6 {[%emt 0:00:20]} 2. Nf3 {[%emt 0:00:07]} e6 {[%emt 0:01:07]} 3. c4 {[%emt 0:00:35]} c5 {[%emt 0:00:25]} 4. d5 {[%emt 0:00:25]} d6 {[%emt 0:00:27]} 5. Nc3 {[%emt 0:00:08]} exd5 {[%emt 0:00:10]} 6. cxd5 {[%emt 0:00:08]} g6 {[%emt 0:00:08]} 7. g3 {[%emt 0:01:58]} Bg7 {[%emt 0:00:16]} 8. Bg2 {[%emt 0:00:05]} O-O {[%emt 0:00:24]} 9. O-O {[%emt 0:00:06]} Re8 {[%emt 0:01:13]} 10. Nd2 {[%emt 0:01:38]} Nbd7 {[%emt 0:01:29]} 11. a4 {[%emt 0:01:43] 11.a4 is better than 11.h3.} Nh5 {[%emt 0:03:03] A62: Modern Benoni: Fianchetto Variation without early ...Nbd7.} 12. Nc4 {[%emt 0:09:10]} Ne5 {[%emt 0:00:36] [#]} 13. Nxe5 $146 {[%emt 0:01:42]} ({Predecessor:} 13. Na3 f5 14. h3 a6 15. Kh2 Bd7 16. f4 b5 17. fxe5 Bxe5 18. Bf4 Bxf4 19. gxf4 {½-½ (50) Arabidze,M (2428)-Villalba,M (2258) Chess.com INT 2020}) 13... Bxe5 {[%emt 0:00:36] The position is equal.} 14. e4 {[%emt 0:00:54]} a6 {[%emt 0:02:50]} 15. f4 {[%emt 0:25:41]} Bd4+ {[%emt 0:02:05]} 16. Kh1 {[%emt 0:00:05]} Rb8 {[%emt 0:03:56]} 17. e5 {[%emt 0:13:34] Against Nf6} (17. g4 $11 {keeps the balance.} Nf6 18. f5) 17... dxe5 $17 {[%emt 0:03:15]} 18. f5 {[%emt 0:03:13] [#]} e4 {[%emt 0:08:25]} (18... Bxf5 19. g4 $14) (18... b6 $1 $17) 19. fxg6 $11 {[%emt 0:03:55]} hxg6 {[%emt 0:03:13]} 20. Nxe4 {[%emt 0:00:19]} f5 {[%emt 0:08:35] Against g4} 21. Ng5 {[%emt 0:01:49][%cal Od5d6]} b6 {[%emt 0:06:56]} 22. Qb3 {[%emt 0:08:14]} Qd6 {[%emt 0:05:14]} 23. g4 {[%emt 0:05:36]} Nf6 {[%emt 0:04:18]} (23... Re2 $2 24. gxh5 Be5 25. Qf3 Rxg2 26. Qxg2 $18) 24. Bf4 {[%emt 0:01:31]} Be5 {[%emt 0:00:15]} 25. Bxe5 {[%emt 0:00:18]} Rxe5 {[%emt 0:00:14]} 26. gxf5 {[%emt 0:00:23]} (26. Qg3 $5 {[%cal Ra1e1]} Bd7 27. gxf5 $11) 26... Bxf5 {[%emt 0:04:35]} 27. Nf3 {[%emt 0:00:35]} (27. Qg3 $11 {remains equal.} Nh5 28. Qh4) 27... Re2 {[%emt 0:02:11]} (27... Rxd5 28. Nh4 c4 29. Qxc4 $18) (27... Qxd5 28. Qc3 Re6 29. Rfd1 $14 (29. Ng5 Be4 $11)) ({Better is} 27... Re4 {Threatens to win with ...Rbe8.} 28. Rae1 Rbe8 29. Rxe4 Rxe4) 28. Nh4 $17 {[%emt 0:01:28]} Be4 {[%emt 0:05:59] ...Kg7 is the strong threat. 0x0.0022fa30cf16dp-1022s more active pieces.} 29. Qh3 {[%emt 0:01:44]} (29. Rae1 $17 Rxe1 30. Rxe1) 29... Kg7 {[%emt 0:08:14]} ({Not} 29... Rxb2 30. Bxe4 Nxe4 31. Nf5 $14) 30. Bxe4 $2 {[%emt 0:02:14]} (30. Rae1 {was worth a try.} Rxe1 31. Rxe1) 30... Nxe4 $19 {[%emt 0:01:12] Chess con chili.} 31. Nf5+ $2 {[%emt 0:09:39]} (31. Nxg6 Ng5 32. Qc3+ Kxg6 33. Qd3+ Re4 34. Rg1) 31... gxf5 {[%emt 0:00:08]} 32. Rxf5 {[%emt 0:00:04] [#]} Rxh2+ $3 {[%emt 0:01:41][%mdl 512]} 33. Qxh2 {[%emt 0:00:46] Threatening mate with Rg1+.} Ng3+ {[%emt 0:00:05]} 34. Qxg3+ {[%emt 0:00:05]} Qxg3 {[%emt 0:00:05]} 35. Rg1 {[%emt 0:00:07]} Rh8+ {[%emt 0:00:03] Weighted Error Value: White=0.71/Black=0.14 (very precise)} 0-1